[Event "Early-Titled-Tuesday-Blitz-September-26-2023"]
[Site "Chess.com"]
[Date "2023.09.26"]
[Round "2"]
[White "CheckThis4"]
[Black "KamlaPasand"]
[Result "1-0"]
[WhiteElo "2684"]
[BlackElo "2429"]
[TimeControl "180+1"]
[EndTime "8:17:12 PDT"]
[Termination "CheckThis4 won by resignation"]

1. e4 {[%clk 0:03:00.9]} 1... e5 {[%clk 0:02:59]} 2. Nf3 {[%clk 0:03:00.6]} 2...
Nc6 {[%clk 0:02:58.7]} 3. Bb5 {[%clk 0:03:00.5]} 3... a6 {[%clk 0:02:57.8]} 4.
Ba4 {[%clk 0:03:00.3]} 4... Nf6 {[%clk 0:02:57.5]} 5. d3 {[%clk 0:02:57.9]} 5...
b5 {[%clk 0:02:52.8]} 6. Bb3 {[%clk 0:02:57.5]} 6... d6 {[%clk 0:02:53.3]} 7.
O-O {[%clk 0:02:56.9]} 7... Be7 {[%clk 0:02:53]} 8. a4 {[%clk 0:02:56.4]} 8...
b4 {[%clk 0:02:49.7]} 9. Nbd2 {[%clk 0:02:52.8]} 9... O-O {[%clk 0:02:49.5]} 10.
a5 {[%clk 0:02:46.8]} 10... Nd4 {[%clk 0:02:41.8]} 11. Nxd4 {[%clk 0:02:44.3]}
11... exd4 {[%clk 0:02:42.7]} 12. h3 {[%clk 0:02:40.8]} 12... c5 {[%clk
0:02:41.7]} 13. Nc4 {[%clk 0:02:29.9]} 13... Rb8 {[%clk 0:02:40.3]} 14. Nb6
{[%clk 0:02:28.1]} 14... Bb7 {[%clk 0:02:38.7]} 15. Bf4 {[%clk 0:02:20.7]} 15...
Nd7 {[%clk 0:02:37.2]} 16. Nd5 {[%clk 0:02:18.4]} 16... Bxd5 {[%clk 0:02:35.9]}
17. Bxd5 {[%clk 0:02:17.8]} 17... Nf6 {[%clk 0:02:35.1]} 18. Bc4 {[%clk
0:02:17.1]} 18... Ra8 {[%clk 0:02:32.1]} 19. e5 {[%clk 0:02:16.6]} 19... dxe5
{[%clk 0:02:29.8]} 20. Bxe5 {[%clk 0:02:17.5]} 20... Bd6 {[%clk 0:02:29.6]} 21.
f4 {[%clk 0:02:13.6]} 21... Qc7 {[%clk 0:02:28]} 22. Bxf6 {[%clk 0:02:11.2]}
22... gxf6 {[%clk 0:02:28.9]} 23. Qh5 {[%clk 0:02:05.2]} 23... Kh8 {[%clk
0:02:26.6]} 24. Qh6 {[%clk 0:01:54.2]} 24... Rg8 {[%clk 0:02:23.8]} 25. Qxf6+
{[%clk 0:01:52.8]} 25... Rg7 {[%clk 0:02:24]} 26. Rae1 {[%clk 0:01:43.2]} 26...
Rg8 {[%clk 0:02:19.9]} 27. Rf2 {[%clk 0:01:41.8]} 27... b3 {[%clk 0:02:10]} 28.
cxb3 {[%clk 0:01:29.7]} 28... Qxa5 {[%clk 0:02:09.6]} 29. Re4 {[%clk 0:01:21.8]}
29... Bc7 {[%clk 0:02:05.3]} 30. Bxf7 {[%clk 0:01:13.1]} 30... Bd8 {[%clk
0:01:59.2]} 31. Qe5 {[%clk 0:01:04.2]} 31... Bc7 {[%clk 0:01:56.7]} 32. Qf5
{[%clk 0:00:50.8]} 32... Rf8 {[%clk 0:01:54.2]} 33. Bc4 {[%clk 0:00:34.3]} 33...
Bd6 {[%clk 0:01:45.2]} 34. Qd5 {[%clk 0:00:22.4]} 34... Qc7 {[%clk 0:01:41.9]}
35. f5 {[%clk 0:00:12.6]} 35... Bg3 {[%clk 0:01:38.8]} 36. Rf3 {[%clk
0:00:10.8]} 36... Qa5 {[%clk 0:01:37.2]} 37. Rf1 {[%clk 0:00:10]} 37... Rd8
{[%clk 0:01:34.8]} 38. Qe6 {[%clk 0:00:09.7]} 38... Qd2 {[%clk 0:01:27.8]} 39.
Re2 {[%clk 0:00:08.4]} 39... Qg5 {[%clk 0:01:23.5]} 40. Qe8+ {[%clk 0:00:07]}
40... Rg8 {[%clk 0:01:20.6]} 41. Bxg8 {[%clk 0:00:06]} 41... Rxe8 {[%clk
0:01:20.4]} 42. Rxe8 {[%clk 0:00:06.7]} 42... Be5 {[%clk 0:01:17.3]} 43. Be6+
{[%clk 0:00:05.9]} 43... Kg7 {[%clk 0:01:17]} 44. Rg8+ {[%clk 0:00:06.6]} 44...
Kf6 {[%clk 0:01:16.9]} 45. Rxg5 {[%clk 0:00:07.5]} 45... Kxg5 {[%clk 0:01:17.8]}
46. Kf2 {[%clk 0:00:08]} 46... Kf6 {[%clk 0:01:18]} 47. Kf3 {[%clk 0:00:08.9]}
47... Bd6 {[%clk 0:01:17.6]} 48. g4 {[%clk 0:00:09.8]} 48... Be7 {[%clk
0:01:18.5]} 49. Ke4 {[%clk 0:00:10.4]} 49... h6 {[%clk 0:01:18.5]} 50. h4 {[%clk
0:00:11]} 50... Kg7 {[%clk 0:01:18.4]} 51. g5 {[%clk 0:00:11.9]} 51... hxg5
{[%clk 0:01:18.4]} 52. hxg5 {[%clk 0:00:12.8]} 52... Bxg5 {[%clk 0:01:19.2]} 53.
Kd5 {[%clk 0:00:13.3]} 53... Bf6 {[%clk 0:01:19]} 54. Kxc5 {[%clk 0:00:13.5]}
54... Kf8 {[%clk 0:01:19.3]} 55. Kc4 {[%clk 0:00:14.4]} 55... Ke7 {[%clk
0:01:20.2]} 56. Ra1 {[%clk 0:00:14.4]} 1-0

[Event "Early-Titled-Tuesday-Blitz-September-26-2023"]
[Site "Chess.com"]
[Date "2023.09.26"]
[Round "2"]
[White "MikeSailer"]
[Black "elegant285"]
[Result "1-0"]
[WhiteElo "2199"]
[BlackElo "2408"]
[TimeControl "180+1"]
[EndTime "8:17:13 PDT"]
[Termination "MikeSailer won by resignation"]

1. d4 {[%clk 0:03:00.1]} 1... Nf6 {[%clk 0:02:57.8]} 2. Nc3 {[%clk 0:02:58.8]}
2... d5 {[%clk 0:02:56.8]} 3. Bf4 {[%clk 0:02:59.2]} 3... c5 {[%clk 0:02:55.5]}
4. e4 {[%clk 0:02:58.3]} 4... dxe4 {[%clk 0:02:49.7]} 5. dxc5 {[%clk 0:02:39.9]}
5... Bd7 {[%clk 0:02:10.7]} 6. Bc4 {[%clk 0:02:30.8]} 6... e5 {[%clk 0:01:54.2]}
7. Bxe5 {[%clk 0:02:13.7]} 7... Bxc5 {[%clk 0:01:54]} 8. Bxf6 {[%clk 0:01:45.1]}
8... Qxf6 {[%clk 0:01:53.4]} 9. Nxe4 {[%clk 0:01:45.3]} 9... Qe5 {[%clk
0:01:12.6]} 10. Qd5 {[%clk 0:01:29.9]} 10... Qxd5 {[%clk 0:01:08.7]} 11. Bxd5
{[%clk 0:01:29.1]} 11... Be7 {[%clk 0:00:45.8]} 12. Bxb7 {[%clk 0:01:25.8]}
12... Bc6 {[%clk 0:00:46.3]} 13. Bxa8 {[%clk 0:01:20.4]} 13... Bxa8 {[%clk
0:00:46.2]} 14. f3 {[%clk 0:01:18.9]} 14... f5 {[%clk 0:00:44.4]} 15. Ng3 {[%clk
0:01:13.4]} 15... Bh4 {[%clk 0:00:41]} 16. O-O-O {[%clk 0:01:11.1]} 16... O-O
{[%clk 0:00:37.6]} 17. Nh3 {[%clk 0:00:59.3]} 17... Nc6 {[%clk 0:00:35.1]} 18.
Rd7 {[%clk 0:00:56.1]} 18... a5 {[%clk 0:00:27.5]} 19. Rhd1 {[%clk 0:00:44.3]}
19... Ne5 {[%clk 0:00:27.5]} 20. Ra7 {[%clk 0:00:39]} 20... Nc4 {[%clk
0:00:25.5]} 21. Rdd7 {[%clk 0:00:28.5]} 21... Bf6 {[%clk 0:00:24.7]} 22. c3
{[%clk 0:00:19.1]} 22... Ne3 {[%clk 0:00:20.4]} 23. Nh5 {[%clk 0:00:15.9]} 23...
Nxg2 {[%clk 0:00:15.2]} 24. Nxf6+ {[%clk 0:00:08.1]} 24... Rxf6 {[%clk
0:00:14.6]} 25. Rxa8+ {[%clk 0:00:08.4]} 25... Rf8 {[%clk 0:00:15.3]} 26. Rxf8+
{[%clk 0:00:08.9]} 26... Kxf8 {[%clk 0:00:16.2]} 27. Ra7 {[%clk 0:00:08.1]} 1-0

[Event "Early-Titled-Tuesday-Blitz-September-26-2023"]
[Site "Chess.com"]
[Date "2023.09.26"]
[Round "2"]
[White "A-Fier"]
[Black "Journey_to_GrandMaster_YT"]
[Result "1-0"]
[WhiteElo "2815"]
[BlackElo "2589"]
[TimeControl "180+1"]
[EndTime "8:17:14 PDT"]
[Termination "A-Fier won on time"]

1. d4 {[%clk 0:03:00.9]} 1... d6 {[%clk 0:02:58.3]} 2. Bg5 {[%clk 0:03:00]} 2...
Nd7 {[%clk 0:02:57.5]} 3. e4 {[%clk 0:02:59.3]} 3... Ngf6 {[%clk 0:02:57.4]} 4.
Nc3 {[%clk 0:02:59.6]} 4... e5 {[%clk 0:02:57.3]} 5. Nf3 {[%clk 0:02:59.2]} 5...
Be7 {[%clk 0:02:57.3]} 6. dxe5 {[%clk 0:02:51.7]} 6... dxe5 {[%clk 0:02:57.4]}
7. Bc4 {[%clk 0:02:50]} 7... c6 {[%clk 0:02:55.5]} 8. a4 {[%clk 0:02:49.7]} 8...
O-O {[%clk 0:02:53.1]} 9. O-O {[%clk 0:02:49.2]} 9... a5 {[%clk 0:02:50.6]} 10.
h3 {[%clk 0:02:49.2]} 10... Nh5 {[%clk 0:02:47.8]} 11. Be3 {[%clk 0:02:47.6]}
11... Nf4 {[%clk 0:02:42.9]} 12. Re1 {[%clk 0:02:44]} 12... Qc7 {[%clk
0:02:29.1]} 13. Bf1 {[%clk 0:02:42.2]} 13... Bb4 {[%clk 0:02:22]} 14. g3 {[%clk
0:02:38.4]} 14... Ne6 {[%clk 0:02:10]} 15. Nd2 {[%clk 0:02:37.2]} 15... Ndc5
{[%clk 0:02:04.4]} 16. Na2 {[%clk 0:02:24.2]} 16... Bxd2 {[%clk 0:01:57.5]} 17.
Bxd2 {[%clk 0:02:24]} 17... Nxa4 {[%clk 0:01:56.9]} 18. Nc3 {[%clk 0:02:21.2]}
18... Nac5 {[%clk 0:01:52.5]} 19. Qh5 {[%clk 0:02:18.2]} 19... Nd4 {[%clk
0:01:45.8]} 20. Rac1 {[%clk 0:02:16.6]} 20... g6 {[%clk 0:01:39.3]} 21. Qd1
{[%clk 0:02:16.7]} 21... Rd8 {[%clk 0:01:39.2]} 22. Bg2 {[%clk 0:02:17.1]} 22...
b5 {[%clk 0:01:29.7]} 23. Bg5 {[%clk 0:02:16.9]} 23... Rd6 {[%clk 0:01:24.9]}
24. Kh1 {[%clk 0:02:16.1]} 24... Nde6 {[%clk 0:01:08.6]} 25. Bd2 {[%clk
0:02:14.6]} 25... b4 {[%clk 0:01:01.3]} 26. Nb1 {[%clk 0:02:14.9]} 26... Ba6
{[%clk 0:01:00.6]} 27. Qg4 {[%clk 0:02:13.9]} 27... h5 {[%clk 0:00:49]} 28. Qh4
{[%clk 0:02:13.7]} 28... Qd8 {[%clk 0:00:49.6]} 29. Qxd8+ {[%clk 0:02:11.2]}
29... Raxd8 {[%clk 0:00:50.2]} 30. Be3 {[%clk 0:02:12]} 30... Na4 {[%clk
0:00:47.5]} 31. b3 {[%clk 0:02:11.5]} 31... Nac5 {[%clk 0:00:45]} 32. f4 {[%clk
0:02:11.9]} 32... f6 {[%clk 0:00:41.5]} 33. f5 {[%clk 0:02:10.7]} 33... gxf5
{[%clk 0:00:35.7]} 34. exf5 {[%clk 0:02:11.1]} 34... Nd4 {[%clk 0:00:36.4]} 35.
g4 {[%clk 0:02:03.8]} 35... hxg4 {[%clk 0:00:35.4]} 36. hxg4 {[%clk 0:02:04.7]}
36... Kf7 {[%clk 0:00:35.8]} 37. Bxd4 {[%clk 0:01:57.8]} 37... Rxd4 {[%clk
0:00:35.3]} 38. Bf3 {[%clk 0:01:55.4]} 38... Rf4 {[%clk 0:00:29.9]} 39. Kg2
{[%clk 0:01:54.2]} 39... e4 {[%clk 0:00:29.4]} 40. Bd1 {[%clk 0:01:54.6]} 40...
Rg8 {[%clk 0:00:25.9]} 41. Kh3 {[%clk 0:01:53.5]} 41... Bf1+ {[%clk 0:00:20.2]}
42. Kh2 {[%clk 0:01:49.5]} 42... Bb5 {[%clk 0:00:18.8]} 43. Kh3 {[%clk
0:01:34.2]} 43... Nd7 {[%clk 0:00:17.7]} 44. Nd2 {[%clk 0:01:31.1]} 44... Ne5
{[%clk 0:00:14.1]} 45. Rxe4 {[%clk 0:01:31.3]} 45... Bf1+ {[%clk 0:00:12.5]} 46.
Kg3 {[%clk 0:01:25.2]} 46... Rxf5 {[%clk 0:00:08.3]} 47. c3 {[%clk 0:01:25.5]}
47... Bd3 {[%clk 0:00:07]} 48. Rd4 {[%clk 0:01:25.2]} 48... Bb5 {[%clk
0:00:04.3]} 49. cxb4 {[%clk 0:01:24.6]} 49... axb4 {[%clk 0:00:04.2]} 50. Ne4
{[%clk 0:01:24.3]} 50... Rf1 {[%clk 0:00:03.2]} 51. Nd6+ {[%clk 0:01:24.4]}
51... Ke6 {[%clk 0:00:03.7]} 52. Nxb5 {[%clk 0:01:23.2]} 52... cxb5 {[%clk
0:00:04.3]} 53. Rc7 {[%clk 0:01:22.3]} 53... Re1 {[%clk 0:00:01.5]} 54. Bc2
{[%clk 0:01:18.1]} 1-0

[Event "Early-Titled-Tuesday-Blitz-September-26-2023"]
[Site "Chess.com"]
[Date "2023.09.26"]
[Round "2"]
[White "Dewarfd"]
[Black "JoseRemolar"]
[Result "1-0"]
[WhiteElo "2132"]
[BlackElo "2417"]
[TimeControl "180+1"]
[EndTime "8:17:14 PDT"]
[Termination "Dewarfd won on time"]

1. d4 {[%clk 0:02:59.8]} 1... g6 {[%clk 0:02:58.4]} 2. e3 {[%clk 0:02:59.3]}
2... Bg7 {[%clk 0:02:57.4]} 3. Nf3 {[%clk 0:02:58.3]} 3... Nf6 {[%clk
0:02:56.9]} 4. Be2 {[%clk 0:02:58.4]} 4... O-O {[%clk 0:02:57.4]} 5. b4 {[%clk
0:02:58.2]} 5... d6 {[%clk 0:02:53.4]} 6. Bb2 {[%clk 0:02:57.9]} 6... Nbd7
{[%clk 0:02:52.4]} 7. O-O {[%clk 0:02:57.6]} 7... Ne4 {[%clk 0:02:15.8]} 8. Nfd2
{[%clk 0:02:51]} 8... Nxd2 {[%clk 0:02:13]} 9. Nxd2 {[%clk 0:02:50.7]} 9... c5
{[%clk 0:02:08.8]} 10. a3 {[%clk 0:02:49]} 10... cxd4 {[%clk 0:02:02.9]} 11.
Bxd4 {[%clk 0:02:45.8]} 11... e5 {[%clk 0:01:42.2]} 12. Bb2 {[%clk 0:02:45]}
12... Nb6 {[%clk 0:01:37.6]} 13. c4 {[%clk 0:02:43.3]} 13... Bd7 {[%clk
0:01:33.5]} 14. Ne4 {[%clk 0:02:36.1]} 14... Na4 {[%clk 0:01:24.1]} 15. Ra2
{[%clk 0:02:05]} 15... Bc6 {[%clk 0:00:32.6]} 16. Nxd6 {[%clk 0:01:49.1]} 16...
Qg5 {[%clk 0:00:26.6]} 17. Bf3 {[%clk 0:01:41.4]} 17... e4 {[%clk 0:00:23.2]}
18. Be2 {[%clk 0:01:39.6]} 18... Nxb2 {[%clk 0:00:21.6]} 19. Qc2 {[%clk
0:01:16.8]} 19... Rad8 {[%clk 0:00:19.6]} 20. c5 {[%clk 0:01:09.9]} 20... Na4
{[%clk 0:00:15.2]} 21. Rd1 {[%clk 0:00:54.3]} 21... Bd5 {[%clk 0:00:15]} 22. Bc4
{[%clk 0:00:50.5]} 22... Bxc4 {[%clk 0:00:14.4]} 23. Qxc4 {[%clk 0:00:51]} 23...
b6 {[%clk 0:00:08.3]} 24. c6 {[%clk 0:00:36.2]} 24... Be5 {[%clk 0:00:02.3]} 25.
Rad2 {[%clk 0:00:29.6]} 25... Bxd6 {[%clk 0:00:02.2]} 26. Rxd6 {[%clk
0:00:28.8]} 26... Nb2 {[%clk 0:00:02.3]} 27. Rxd8 {[%clk 0:00:20.8]} 27... Nxd1
{[%clk 0:00:01.6]} 28. Rxf8+ {[%clk 0:00:20.1]} 28... Kxf8 {[%clk 0:00:02.5]}
29. c7 {[%clk 0:00:19.9]} 1-0

[Event "Early-Titled-Tuesday-Blitz-September-26-2023"]
[Site "Chess.com"]
[Date "2023.09.26"]
[Round "2"]
[White "Predator0608"]
[Black "AleksandrAleksikov"]
[Result "1-0"]
[WhiteElo "2462"]
[BlackElo "2212"]
[TimeControl "180+1"]
[EndTime "8:17:15 PDT"]
[Termination "Predator0608 won on time"]

1. f4 {[%clk 0:02:56.8]} 1... Nf6 {[%clk 0:02:59.4]} 2. Nf3 {[%clk 0:02:55.7]}
2... g6 {[%clk 0:02:59.3]} 3. g3 {[%clk 0:02:56]} 3... Bg7 {[%clk 0:02:58.5]} 4.
Bg2 {[%clk 0:02:56.9]} 4... O-O {[%clk 0:02:57.7]} 5. O-O {[%clk 0:02:57.2]}
5... c5 {[%clk 0:02:54.5]} 6. d3 {[%clk 0:02:57.2]} 6... d5 {[%clk 0:02:53.5]}
7. Qe1 {[%clk 0:02:57.3]} 7... Nc6 {[%clk 0:02:49.7]} 8. e4 {[%clk 0:02:57.2]}
8... dxe4 {[%clk 0:02:44.2]} 9. dxe4 {[%clk 0:02:58.1]} 9... e5 {[%clk
0:02:43.6]} 10. Nc3 {[%clk 0:02:55.1]} 10... Re8 {[%clk 0:02:25.3]} 11. f5
{[%clk 0:02:34.7]} 11... Nd4 {[%clk 0:02:15.9]} 12. fxg6 {[%clk 0:02:07.8]}
12... fxg6 {[%clk 0:02:04.7]} 13. Bg5 {[%clk 0:01:25.7]} 13... Nxc2 {[%clk
0:01:42.1]} 14. Qe2 {[%clk 0:01:22.7]} 14... Nxa1 {[%clk 0:01:39]} 15. Nd5
{[%clk 0:01:16.9]} 15... Qd6 {[%clk 0:01:22.6]} 16. Bxf6 {[%clk 0:00:55.3]}
16... Bxf6 {[%clk 0:01:21.2]} 17. Nd4 {[%clk 0:00:47]} 17... Rf8 {[%clk
0:01:09.2]} 18. Nb5 {[%clk 0:00:46.5]} 18... Qd8 {[%clk 0:01:07.7]} 19. Nbc7
{[%clk 0:00:44.4]} 19... Rb8 {[%clk 0:01:05.4]} 20. Rxa1 {[%clk 0:00:44.7]}
20... Bg7 {[%clk 0:00:52.5]} 21. Rd1 {[%clk 0:00:36.3]} 21... a6 {[%clk
0:00:42.9]} 22. Qc4 {[%clk 0:00:31.4]} 22... Kh8 {[%clk 0:00:26.5]} 23. Qxc5
{[%clk 0:00:31.6]} 23... Bg4 {[%clk 0:00:22]} 24. Rc1 {[%clk 0:00:28.8]} 24...
Rc8 {[%clk 0:00:19.9]} 25. Qb6 {[%clk 0:00:28]} 25... Rf7 {[%clk 0:00:13.6]} 26.
h3 {[%clk 0:00:26.6]} 26... Be2 {[%clk 0:00:11]} 27. Qxb7 {[%clk 0:00:19.9]}
27... Bf8 {[%clk 0:00:05.6]} 28. Re1 {[%clk 0:00:19.7]} 1-0

[Event "Early-Titled-Tuesday-Blitz-September-26-2023"]
[Site "Chess.com"]
[Date "2023.09.26"]
[Round "2"]
[White "Ditman2007"]
[Black "Defenstrator"]
[Result "1-0"]
[WhiteElo "2681"]
[BlackElo "2364"]
[TimeControl "180+1"]
[EndTime "8:17:18 PDT"]
[Termination "Ditman2007 won by resignation"]

1. e4 {[%clk 0:02:59.9]} 1... g6 {[%clk 0:02:57.9]} 2. d4 {[%clk 0:02:59.3]}
2... Bg7 {[%clk 0:02:58.5]} 3. Nc3 {[%clk 0:02:55.9]} 3... c5 {[%clk 0:02:58.8]}
4. dxc5 {[%clk 0:02:56.1]} 4... Bxc3+ {[%clk 0:02:56.1]} 5. bxc3 {[%clk
0:02:56.1]} 5... Qa5 {[%clk 0:02:56.4]} 6. Qd4 {[%clk 0:02:54.8]} 6... Nf6
{[%clk 0:02:55.8]} 7. Qb4 {[%clk 0:02:44.1]} 7... Qc7 {[%clk 0:02:52.5]} 8. Bd3
{[%clk 0:02:42]} 8... Na6 {[%clk 0:02:36.2]} 9. Bxa6 {[%clk 0:02:37.2]} 9...
bxa6 {[%clk 0:02:36.7]} 10. Be3 {[%clk 0:02:37.4]} 10... Rb8 {[%clk 0:02:28.1]}
11. Qd4 {[%clk 0:02:30.3]} 11... O-O {[%clk 0:02:15.9]} 12. Nf3 {[%clk 0:02:23]}
12... Ng4 {[%clk 0:02:01.6]} 13. Bg5 {[%clk 0:02:08.8]} 13... f6 {[%clk
0:01:41.4]} 14. Bc1 {[%clk 0:02:03.2]} 14... Ne5 {[%clk 0:01:23.4]} 15. Nxe5
{[%clk 0:01:59.8]} 15... fxe5 {[%clk 0:01:24]} 16. Qc4+ {[%clk 0:01:50.2]} 16...
e6 {[%clk 0:01:13]} 17. O-O {[%clk 0:01:48.3]} 17... Bb7 {[%clk 0:01:03.3]} 18.
Be3 {[%clk 0:01:36]} 18... d5 {[%clk 0:01:01.3]} 19. Qd3 {[%clk 0:01:25.9]}
19... Rbd8 {[%clk 0:00:46.7]} 20. Rab1 {[%clk 0:01:23.7]} 20... d4 {[%clk
0:00:39.8]} 21. cxd4 {[%clk 0:01:18.7]} 21... exd4 {[%clk 0:00:39.7]} 22. Bxd4
{[%clk 0:01:18.9]} 22... e5 {[%clk 0:00:31.9]} 23. Qb3+ {[%clk 0:01:17.9]} 23...
Rf7 {[%clk 0:00:31.1]} 24. Be3 {[%clk 0:01:07.7]} 24... Bxe4 {[%clk 0:00:31.8]}
25. Rfd1 {[%clk 0:01:07.4]} 25... Kg7 {[%clk 0:00:24.1]} 26. Bg5 {[%clk
0:00:57.5]} 26... Rdf8 {[%clk 0:00:21.3]} 27. f3 {[%clk 0:00:52]} 27... Qxc5+
{[%clk 0:00:21.6]} 28. Be3 {[%clk 0:00:51.4]} 28... Qxc2 {[%clk 0:00:18.2]} 29.
fxe4 {[%clk 0:00:51.5]} 29... Qxe4 {[%clk 0:00:15.6]} 30. Qc3 {[%clk 0:00:48.8]}
30... Rf5 {[%clk 0:00:07.3]} 31. Re1 {[%clk 0:00:45.9]} 31... Qg4 {[%clk
0:00:07.6]} 32. Rbd1 {[%clk 0:00:41.8]} 32... R8f7 {[%clk 0:00:07.7]} 33. h3
{[%clk 0:00:32.7]} 33... Qg3 {[%clk 0:00:08.3]} 34. Bh6+ {[%clk 0:00:32.2]} 1-0

[Event "Early-Titled-Tuesday-Blitz-September-26-2023"]
[Site "Chess.com"]
[Date "2023.09.26"]
[Round "2"]
[White "salomez"]
[Black "goodluck06"]
[Result "0-1"]
[WhiteElo "2316"]
[BlackElo "2666"]
[TimeControl "180+1"]
[EndTime "8:17:18 PDT"]
[Termination "goodluck06 won by checkmate"]

1. e4 {[%clk 0:02:56.2]} 1... e6 {[%clk 0:02:58.7]} 2. d4 {[%clk 0:02:55.6]}
2... d5 {[%clk 0:02:59.2]} 3. Nc3 {[%clk 0:02:55.2]} 3... Bb4 {[%clk 0:02:58.8]}
4. Ne2 {[%clk 0:02:52]} 4... dxe4 {[%clk 0:02:54.8]} 5. a3 {[%clk 0:02:52]} 5...
Bxc3+ {[%clk 0:02:52.4]} 6. Nxc3 {[%clk 0:02:52.9]} 6... Nc6 {[%clk 0:02:52.6]}
7. Bb5 {[%clk 0:02:48.3]} 7... Ne7 {[%clk 0:02:46.5]} 8. Bg5 {[%clk 0:02:40.9]}
8... f6 {[%clk 0:02:46.7]} 9. Be3 {[%clk 0:02:30.7]} 9... f5 {[%clk 0:02:46]}
10. f3 {[%clk 0:02:30]} 10... exf3 {[%clk 0:02:16.4]} 11. Qxf3 {[%clk
0:02:30.9]} 11... O-O {[%clk 0:02:12.7]} 12. O-O-O {[%clk 0:02:30.2]} 12... Nd5
{[%clk 0:02:04.3]} 13. Nxd5 {[%clk 0:02:04.9]} 13... Qxd5 {[%clk 0:02:03.9]} 14.
Qe2 {[%clk 0:01:57.8]} 14... f4 {[%clk 0:01:35.3]} 15. Bf2 {[%clk 0:01:37.3]}
15... Qa2 {[%clk 0:01:19.6]} 16. c3 {[%clk 0:01:04.8]} 16... Qd5 {[%clk
0:01:17.9]} 17. Bc4 {[%clk 0:01:00]} 17... Qg5 {[%clk 0:01:17.7]} 18. Kb1 {[%clk
0:00:35.9]} 18... Kh8 {[%clk 0:01:17.6]} 19. d5 {[%clk 0:00:32.7]} 19... Ne5
{[%clk 0:01:13.5]} 20. dxe6 {[%clk 0:00:28.4]} 20... Nxc4 {[%clk 0:01:05]} 21.
Qxc4 {[%clk 0:00:29.3]} 21... Qf5+ {[%clk 0:00:59.6]} 22. Ka1 {[%clk 0:00:24.6]}
22... Bxe6 {[%clk 0:01:00]} 23. Qxc7 {[%clk 0:00:20.7]} 23... Rac8 {[%clk
0:00:48.4]} 24. Qd6 {[%clk 0:00:20.2]} 24... Bg8 {[%clk 0:00:39.9]} 25. Rhe1
{[%clk 0:00:08]} 25... Rc6 {[%clk 0:00:32.5]} 26. Qe5 {[%clk 0:00:07.1]} 26...
Qf7 {[%clk 0:00:32.5]} 27. Kb1 {[%clk 0:00:07.4]} 27... Qg6+ {[%clk 0:00:27.5]}
28. Kc1 {[%clk 0:00:07]} 28... Bb3 {[%clk 0:00:18.4]} 29. Rd7 {[%clk 0:00:06.5]}
29... Qc2# {[%clk 0:00:17.7]} 0-1

[Event "Early-Titled-Tuesday-Blitz-September-26-2023"]
[Site "Chess.com"]
[Date "2023.09.26"]
[Round "2"]
[White "NowInChess"]
[Black "Shuvalov"]
[Result "1/2-1/2"]
[WhiteElo "2259"]
[BlackElo "2470"]
[TimeControl "180+1"]
[EndTime "8:17:19 PDT"]
[Termination "Game drawn - insufficient material"]

1. e4 {[%clk 0:03:00.9]} 1... e6 {[%clk 0:02:58]} 2. d4 {[%clk 0:02:59.9]} 2...
d5 {[%clk 0:02:57.6]} 3. exd5 {[%clk 0:03:00.8]} 3... exd5 {[%clk 0:02:57.3]} 4.
c4 {[%clk 0:03:01.7]} 4... Nf6 {[%clk 0:02:57]} 5. Nc3 {[%clk 0:03:02.1]} 5...
Nc6 {[%clk 0:02:56]} 6. Nf3 {[%clk 0:02:59.8]} 6... Bg4 {[%clk 0:02:55]} 7. cxd5
{[%clk 0:02:55.5]} 7... Nxd5 {[%clk 0:02:54.7]} 8. Bd3 {[%clk 0:02:52.5]} 8...
Be7 {[%clk 0:02:49.1]} 9. h3 {[%clk 0:02:44.9]} 9... Bh5 {[%clk 0:02:44.9]} 10.
O-O {[%clk 0:02:40.5]} 10... Bg6 {[%clk 0:02:35.9]} 11. Bxg6 {[%clk 0:02:37.3]}
11... hxg6 {[%clk 0:02:36.8]} 12. Re1 {[%clk 0:02:35.3]} 12... O-O {[%clk
0:02:34.8]} 13. Be3 {[%clk 0:02:09.8]} 13... Re8 {[%clk 0:02:32.2]} 14. Qd2
{[%clk 0:02:09.4]} 14... Nxe3 {[%clk 0:02:29.1]} 15. Rxe3 {[%clk 0:01:56]} 15...
Bf6 {[%clk 0:02:26.1]} 16. Rxe8+ {[%clk 0:01:47.3]} 16... Qxe8 {[%clk 0:02:27]}
17. d5 {[%clk 0:01:45]} 17... Ne5 {[%clk 0:02:25.2]} 18. Nxe5 {[%clk 0:01:39.9]}
18... Qxe5 {[%clk 0:02:26.1]} 19. Re1 {[%clk 0:01:37.8]} 19... Qd4 {[%clk
0:02:03.6]} 20. Qxd4 {[%clk 0:01:33.8]} 20... Bxd4 {[%clk 0:02:04.5]} 21. Re7
{[%clk 0:01:33.3]} 21... Bb6 {[%clk 0:02:04.4]} 22. Na4 {[%clk 0:01:28.4]} 22...
Ba5 {[%clk 0:01:25.4]} 23. a3 {[%clk 0:01:13.5]} 23... Kf8 {[%clk 0:01:25]} 24.
Re2 {[%clk 0:01:05.1]} 24... Re8 {[%clk 0:01:23.5]} 25. Kf1 {[%clk 0:00:41.7]}
25... Rxe2 {[%clk 0:01:21.5]} 26. Kxe2 {[%clk 0:00:41.5]} 26... Bb6 {[%clk
0:01:12.6]} 27. f3 {[%clk 0:00:32.7]} 27... Ke7 {[%clk 0:01:12]} 28. Kd3 {[%clk
0:00:32.7]} 28... Kd6 {[%clk 0:01:11.1]} 29. Ke4 {[%clk 0:00:25.9]} 29... f5+
{[%clk 0:01:06.8]} 30. Kf4 {[%clk 0:00:25.6]} 30... Kxd5 {[%clk 0:01:07.2]} 31.
Nxb6+ {[%clk 0:00:18.3]} 31... axb6 {[%clk 0:01:08.1]} 32. Kg5 {[%clk
0:00:18.7]} 32... c5 {[%clk 0:01:03.8]} 33. Kxg6 {[%clk 0:00:18.9]} 33... Kc4
{[%clk 0:01:02.3]} 34. Kxg7 {[%clk 0:00:19.2]} 34... Kb3 {[%clk 0:01:02.1]} 35.
h4 {[%clk 0:00:20.1]} 35... Kxb2 {[%clk 0:01:02.6]} 36. h5 {[%clk 0:00:21]}
36... c4 {[%clk 0:01:03.2]} 37. h6 {[%clk 0:00:21.9]} 37... c3 {[%clk
0:01:03.7]} 38. h7 {[%clk 0:00:22.8]} 38... c2 {[%clk 0:01:04.3]} 39. h8=Q
{[%clk 0:00:23.7]} 39... c1=Q {[%clk 0:01:04.4]} 40. Kg6+ {[%clk 0:00:23]} 40...
Kxa3 {[%clk 0:01:02.9]} 41. Qa8+ {[%clk 0:00:19.4]} 41... Kb4 {[%clk 0:00:57.6]}
42. Qxb7 {[%clk 0:00:20.3]} 42... Qc5 {[%clk 0:00:56.4]} 43. Qf7 {[%clk
0:00:17.8]} 43... Qf2 {[%clk 0:00:52]} 44. Qxf5 {[%clk 0:00:16.8]} 44... Qxg2+
{[%clk 0:00:51.1]} 45. Qg4+ {[%clk 0:00:17.7]} 45... Qxg4+ {[%clk 0:00:50.3]}
46. fxg4 {[%clk 0:00:18.6]} 46... b5 {[%clk 0:00:50.7]} 47. Kf7 {[%clk 0:00:16]}
47... Kc3 {[%clk 0:00:49.2]} 48. g5 {[%clk 0:00:16.9]} 48... b4 {[%clk
0:00:49.8]} 49. g6 {[%clk 0:00:17.8]} 49... b3 {[%clk 0:00:50.3]} 50. g7 {[%clk
0:00:18.7]} 50... b2 {[%clk 0:00:50.8]} 51. g8=Q {[%clk 0:00:19.6]} 51... b1=Q
{[%clk 0:00:51.1]} 52. Qc8+ {[%clk 0:00:20.5]} 52... Kd2 {[%clk 0:00:51]} 53.
Qd7+ {[%clk 0:00:20.1]} 53... Qd3 {[%clk 0:00:50.9]} 54. Qxd3+ {[%clk
0:00:19.9]} 54... Kxd3 {[%clk 0:00:51.4]} 1/2-1/2